[Event "Irish International Open 2019"]
[Site "Dublin"]
[Date "2019.04.20"]
[Round "5.11"]
[White "Schmitz, Andreas Arnold"]
[Black "Brady, Stephen"]
[Result "0-1"]
[ECO "B01"]
[WhiteElo "2003"]
[BlackElo "2301"]
[Annotator "NA"]
[PlyCount "27"]
[EventDate "2019.02.28"]
[EventType "swiss"]
[EventCountry "IRL"]
[SourceTitle "playchess.com"]
[Source "ChessBase"]
[SourceQuality "1"]
[TimeControl "5400+30"]

1. e4 {[%emt 1:30:30]} d5 {[%emt 0:02:13]} 2. exd5 {[%emt 0:00:00]} Qxd5 {[%emt 0:00:07]} 3. Qf3 {[%emt 0:00:00]} Nf6 {[%emt 0:02:38]} 4. Nc3 {[%emt 0:00:00]} Qa5 {[%emt 0:01:11]} 5. b4 {[%emt 0:00:00]} Qxb4 {[%emt 0:06:36]} 6. Rb1 {[%emt 0:00:00]} Qg4 {[%emt 0:00:20]} 7. Qxg4 {[%emt 0:00:00]} Nxg4 {[%emt 0:00:19]} 8. Nf3 {[%emt 0:00:00]} e6 {[%emt 0:01:03]} 9. d4 {[%emt 0:00:00]} Bd6 {[%emt 0:38:28]} 10. h3 {[%emt 0:00:00]} Nf6 {[%emt 0:00:08]} 11. Bc4 {[%emt 0:00:00]} Nbd7 {[%emt 0:01:04]} 12. Nb5 {[%emt 0:00:00]} Nb6 {[%emt 0:01:15]} 13. Bd3 {[%emt 0:00:00]} O-O {[%emt 0:10:25]} 14. c4 {[%emt 0:00:00]} 0-1

[Event "Irish International Open 2019"]
[Site "Dublin"]
[Date "2019.04.20"]
[Round "5.13"]
[White "Horvath, Gabor"]
[Black "Mulligan, Scott"]
[Result "1/2-1/2"]
[ECO "B11"]
[WhiteElo "2252"]
[BlackElo "2006"]
[Annotator "NA"]
[PlyCount "96"]
[EventDate "2019.02.28"]
[EventType "swiss"]
[EventCountry "IRL"]
[SourceTitle "playchess.com"]
[Source "ChessBase"]
[SourceQuality "1"]
[TimeControl "5400+30"]

1. e4 {[%emt 0:00:00]} c6 {[%emt 0:00:00]} 2. Nf3 {[%emt 0:02:29]} d5 {[%emt 0:00:05]} 3. Nc3 {[%emt 0:00:06]} Bg4 {[%emt 0:00:46]} 4. h3 {[%emt 0:00:59]} Bxf3 {[%emt 0:00:04]} 5. Qxf3 {[%emt 0:00:08]} e6 {[%emt 0:00:31]} 6. g3 {[%emt 0:03:48]} Nf6 {[%emt 0:08:33]} 7. Bg2 {[%emt 0:06:10]} Nxe4 {[%emt 0:02:42]} 8. Nxe4 {[%emt 0:00:06]} dxe4 {[%emt 0:00:02]} 9. Qxe4 {[%emt 0:00:07]} Qd5 {[%emt 0:00:24]} 10. d4 {[%emt 0:07:22]} Nd7 {[%emt 0:03:30]} 11. O-O {[%emt 0:03:53]} Qxe4 {[%emt 0:03:12]} 12. Bxe4 {[%emt 0:00:05]} Be7 {[%emt 0:00:51]} 13. Bf4 {[%emt 0:13:59]} Nf6 {[%emt 0:03:11]} 14. Bg2 {[%emt 0:00:26]} Nd5 {[%emt 0:00:32]} 15. Bd2 {[%emt 0:00:29]} Bf6 {[%emt 0:00:25]} 16. c3 {[%emt 0:00:49]} O-O {[%emt 0:01:54]} 17. Rac1 {[%emt 0:09:01]} Rfd8 {[%emt 0:04:10]} 18. Rfd1 {[%emt 0:00:45]} e5 {[%emt 0:03:31]} 19. c4 {[%emt 0:10:19]} Nb6 {[%emt 0:10:12]} 20. dxe5 {[%emt 0:01:40]} Bxe5 {[%emt 0:00:06]} 21. b3 {[%emt 0:00:43]} Bb2 {[%emt 0:09:17]} 22. Rb1 {[%emt 0:02:30]} Bf6 {[%emt 0:05:13]} 23. Be3 {[%emt 0:01:51]} Rxd1+ {[%emt 0:02:10]} 24. Rxd1 {[%emt 0:00:07]} Rd8 {[%emt 0:00:04]} 25. Rxd8+ {[%emt 0:00:30]} Bxd8 {[%emt 0:00:10]} 26. Kf1 {[%emt 0:00:15]} Nc8 {[%emt 0:06:55]} 27. Ke2 {[%emt 0:00:41]} Bb6 {[%emt 0:00:09]} 28. c5 {[%emt 0:03:40]} Ba5 {[%emt 0:04:08]} 29. Kd3 {[%emt 0:03:17]} Kf8 {[%emt 0:01:29]} 30. Kc4 {[%emt 0:01:46]} Ke7 {[%emt 0:01:15]} 31. b4 {[%emt 0:03:18]} Bc7 {[%emt 0:01:49]} 32. h4 {[%emt 0:02:21]} Ke6 {[%emt 0:07:26]} 33. Bh3+ {[%emt 0:08:26]} f5 {[%emt 0:00:05]} 34. h5 {[%emt 0:05:58]} Ne7 {[%emt 0:03:23]} 35. Bg2 {[%emt 0:02:23]} g6 {[%emt 0:02:46]} 36. hxg6 {[%emt 0:00:31]} hxg6 {[%emt 0:00:05]} 37. a4 {[%emt 0:00:51]} a6 {[%emt 0:07:07]} 38. Bd2 {[%emt 0:01:54]} Nd5 {[%emt 0:03:26]} 39. b5 {[%emt 0:00:20]} axb5+ {[%emt 0:01:21]} 40. axb5 {[%emt 0:00:06]} Ne7 {[%emt 0:03:01]} 41. Bg5 {[%emt 0:00:25]} Kd7 {[%emt 0:02:05]} 42. Bxe7 {[%emt 0:00:47]} Kxe7 {[%emt 0:00:01]} 43. bxc6 {[%emt 0:00:14]} bxc6 {[%emt 0:00:03]} 44. Bxc6 {[%emt 0:00:21]} g5 {[%emt 0:00:59]} 45. Ba4 {[%emt 0:01:01]} g4 {[%emt 0:01:07]} 46. Bd1 {[%emt 0:03:13]} Kf6 {[%emt 0:01:23]} 47. Kd5 {[%emt 0:00:56]} Kg5 {[%emt 0:00:03]} 48. c6 {[%emt 0:00:43]} f4 {[%emt 0:00:11]} 1/2-1/2

[Event "Irish International Open 2019"]
[Site "Dublin"]
[Date "2019.04.20"]
[Round "5.14"]
[White "Moran, Stephen"]
[Black "Murphy, Sean"]
[Result "1-0"]
[ECO "D45"]
[WhiteElo "2165"]
[BlackElo "1976"]
[Annotator "NA"]
[PlyCount "79"]
[EventDate "2019.02.28"]
[EventType "swiss"]
[EventCountry "IRL"]
[SourceTitle "playchess.com"]
[Source "ChessBase"]
[SourceQuality "1"]
[TimeControl "5400+30"]

1. Nf3 {[%emt 0:00:00]} d5 {[%emt 0:00:50]} 2. e3 {[%emt 0:00:11]} Nf6 {[%emt 0:00:12]} 3. c4 {[%emt 0:00:08]} c6 {[%emt 0:00:08]} 4. Nc3 {[%emt 0:00:20]} e6 {[%emt 0:00:45]} 5. d4 {[%emt 0:00:15]} Nbd7 {[%emt 0:00:08]} 6. Bd2 {[%emt 0:00:13]} Bd6 {[%emt 0:01:13]} 7. Bd3 {[%emt 0:00:39]} dxc4 {[%emt 0:12:30]} 8. Bxc4 {[%emt 0:00:07]} b5 {[%emt 0:00:19]} 9. Bd3 {[%emt 0:00:16]} a6 {[%emt 0:01:40]} 10. Ne4 {[%emt 0:02:12]} Nxe4 {[%emt 0:00:51]} 11. Bxe4 {[%emt 0:00:07]} Bb7 {[%emt 0:00:17]} 12. Rc1 {[%emt 0:00:56]} Rc8 {[%emt 0:01:20]} 13. b4 {[%emt 0:01:25]} O-O {[%emt 0:02:02]} 14. O-O {[%emt 0:03:12]} Qe7 {[%emt 0:00:44]} 15. a3 {[%emt 0:06:19]} a5 {[%emt 0:11:21]} 16. Qb3 {[%emt 0:07:36]} Kh8 {[%emt 0:05:53]} 17. Bc3 {[%emt 0:32:24]} Nf6 {[%emt 0:01:10]} 18. Bd3 {[%emt 0:03:52]} Nd5 {[%emt 0:17:02]} 19. Rb1 {[%emt 0:07:49]} Nxc3 {[%emt 0:02:07]} 20. Qxc3 {[%emt 0:00:08]} axb4 {[%emt 0:00:08]} 21. axb4 {[%emt 0:00:05]} Ra8 {[%emt 0:03:17]} 22. Rb3 {[%emt 0:02:58]} h5 {[%emt 0:10:13]} 23. e4 {[%emt 0:04:41]} h4 {[%emt 0:02:07]} 24. e5 {[%emt 0:01:58]} Bc7 {[%emt 0:00:16]} 25. Be4 {[%emt 0:03:11]} Bb6 {[%emt 0:02:37]} 26. Qe3 {[%emt 0:00:52]} g6 {[%emt 0:02:27]} 27. Qh6+ {[%emt 0:01:22]} Kg8 {[%emt 0:00:05]} 28. Ng5 {[%emt 0:01:28]} f6 {[%emt 0:01:05]} 29. Qxg6+ {[%emt 0:00:23]} Kh8 {[%emt 0:01:09]} 30. Qh6+ {[%emt 0:03:36]} Kg8 {[%emt 0:00:15]} 31. Qg6+ {[%emt 0:08:48]} Kh8 {[%emt 0:00:12]} 32. Nxe6 {[%emt 0:01:08]} Rf7 {[%emt 0:03:27]} 33. Qh5+ {[%emt 0:00:30]} Rh7 {[%emt 0:00:38]} 34. Bxh7 {[%emt 0:01:16]} Qxh7 {[%emt 0:00:20]} 35. Qxh7+ {[%emt 0:00:43]} Kxh7 {[%emt 0:00:02]} 36. exf6 {[%emt 0:00:19]} Bc8 {[%emt 0:00:58]} 37. Ng5+ {[%emt 0:01:03]} Kg6 {[%emt 0:00:13]} 38. f7 {[%emt 0:00:40]} Bf5 {[%emt 0:00:11]} 39. Re3 {[%emt 0:01:56]} Bd7 {[%emt 0:01:03]} 40. Re7 {[%emt 0:01:23]} 1-0

[Event "Irish International Open 2019"]
[Site "Dublin"]
[Date "2019.04.20"]
[Round "5.15"]
[White "Murray, David"]
[Black "Plaza Reino, Mercedes"]
[Result "1-0"]
[ECO "B43"]
[WhiteElo "2152"]
[BlackElo "1927"]
[Annotator "NA"]
[PlyCount "87"]
[EventDate "2019.02.28"]
[EventType "swiss"]
[EventCountry "IRL"]
[SourceTitle "playchess.com"]
[Source "ChessBase"]
[SourceQuality "1"]
[TimeControl "5400+30"]

1. e4 {[%emt 1:30:30]} c5 {[%emt 1:30:30]} 2. Nf3 {[%emt 0:00:30]} e6 {[%emt 0:00:30]} 3. d4 {[%emt 0:00:30]} cxd4 {[%emt 0:00:30]} 4. Nxd4 {[%emt 0:00:30]} a6 {[%emt 0:00:30]} 5. Nc3 {[%emt 0:00:30]} Qc7 {[%emt 0:00:30]} 6. Bd3 {[%emt 0:00:30]} Nf6 {[%emt 0:00:30]} 7. O-O {[%emt 0:00:30]} b5 {[%emt 0:00:30]} 8. Re1 {[%emt 0:00:30]} d6 {[%emt 0:00:30]} 9. a4 {[%emt 0:00:30]} b4 {[%emt 0:00:30]} 10. Na2 {[%emt 0:00:30]} d5 {[%emt 0:00:30]} 11. exd5 {[%emt 0:00:30]} Nxd5 {[%emt 0:00:30]} 12. Be4 {[%emt 0:00:30]} Be7 {[%emt 0:00:30]} 13. Bxd5 {[%emt 0:00:30]} exd5 {[%emt 0:00:30]} 14. Nxb4 {[%emt 0:00:30]} Qc5 {[%emt 0:00:30]} 15. c3 {[%emt 0:00:30]} O-O {[%emt 0:00:30]} 16. Nxd5 {[%emt 0:00:30]} Qxd5 {[%emt 0:00:30]} 17. Rxe7 {[%emt 0:00:30]} Nc6 {[%emt 0:00:30]} 18. Rc7 {[%emt 0:00:30]} Re8 {[%emt 0:00:30]} 19. Be3 {[%emt 0:00:30]} Ne5 {[%emt 0:00:30]} 20. Nc6 {[%emt 0:00:30]} Qe6 {[%emt 0:00:30]} 21. Nxe5 {[%emt 0:00:30]} Qxe5 {[%emt 0:00:30]} 22. Rc5 {[%emt 0:00:30]} Qe7 {[%emt 0:00:30]} 23. Qf3 {[%emt 0:00:30]} Bb7 {[%emt 0:00:30]} 24. Qg3 {[%emt 0:00:30]} Qe4 {[%emt 0:00:30]} 25. Rg5 {[%emt 0:00:30]} g6 {[%emt 0:00:30]} 26. h4 {[%emt 0:00:30]} Rad8 {[%emt 0:00:30]} 27. Bd4 {[%emt 0:00:30]} Re6 {[%emt 0:00:30]} 28. Rg4 {[%emt 0:00:30]} Qd5 {[%emt 0:00:30]} 29. Qf4 {[%emt 0:00:30]} Rde8 {[%emt 0:00:30]} 30. Qh6 {[%emt 0:00:30]} Re1+ {[%emt 0:00:30]} 31. Rxe1 {[%emt 0:00:30]} Rxe1+ {[%emt 0:00:30]} 32. Kh2 {[%emt 0:00:30]} Qd6+ {[%emt 0:00:30]} 33. Rg3 {[%emt 0:00:30]} f6 {[%emt 0:00:30]} 34. h5 {[%emt 0:00:30]} Be4 {[%emt 0:00:30]} 35. Qd2 {[%emt 0:00:30]} Rb1 {[%emt 0:00:30]} 36. Qe2 {[%emt 0:00:30]} Qd5 {[%emt 0:00:30]} 37. hxg6 {[%emt 0:00:30]} hxg6 {[%emt 0:00:30]} 38. b4 {[%emt 0:00:30]} Qc6 {[%emt 0:00:30]} 39. Qe3 {[%emt 0:00:30]} Kg7 {[%emt 0:00:30]} 40. Qf4 {[%emt 0:00:30]} Re1 {[%emt 0:00:30]} 41. Rh3 {[%emt 0:00:30]} Qe6 {[%emt 0:00:30]} 42. Qc7+ {[%emt 0:00:30]} Kg8 {[%emt 0:00:30]} 43. Qd8+ {[%emt 0:00:30]} Kg7 {[%emt 0:00:30]} 44. Qh8+ {[%emt 0:00:30]} 1-0

[Event "Irish International Open 2019"]
[Site "Dublin"]
[Date "2019.04.20"]
[Round "5.16"]
[White "Phelan, Leo"]
[Black "Melaugh, Shane"]
[Result "0-1"]
[ECO "B41"]
[WhiteElo "1708"]
[BlackElo "2105"]
[Annotator "NA"]
[PlyCount "63"]
[EventDate "2019.02.28"]
[EventType "swiss"]
[EventCountry "IRL"]
[SourceTitle "playchess.com"]
[Source "ChessBase"]
[SourceQuality "1"]
[TimeControl "5400+30"]

1. e4 {[%emt 0:00:00]} c5 {[%emt 0:06:23]} 2. Nf3 {[%emt 0:00:00]} e6 {[%emt 0:00:07]} 3. d4 {[%emt 0:00:00]} cxd4 {[%emt 0:00:06]} 4. Nxd4 {[%emt 0:00:00]} a6 {[%emt 0:00:05]} 5. c4 {[%emt 0:00:00]} Qc7 {[%emt 0:01:06]} 6. Nc3 {[%emt 0:00:18]} Nf6 {[%emt 0:00:35]} 7. a3 {[%emt 0:00:10]} Nc6 {[%emt 0:02:25]} 8. Be3 {[%emt 0:00:19]} Be7 {[%emt 0:00:38]} 9. Be2 {[%emt 0:00:09]} O-O {[%emt 0:00:21]} 10. O-O {[%emt 0:00:08]} Rd8 {[%emt 0:04:55]} 11. f4 {[%emt 0:16:56]} d5 {[%emt 0:08:54]} 12. e5 {[%emt 0:00:29]} dxc4 {[%emt 0:00:47]} 13. Nxc6 {[%emt 0:07:49]} Rxd1 {[%emt 0:04:26]} 14. Nxe7+ {[%emt 0:00:07]} Qxe7 {[%emt 0:00:03]} 15. Raxd1 {[%emt 0:00:33]} Ne8 {[%emt 0:00:12]} 16. Bxc4 {[%emt 0:01:29]} b5 {[%emt 0:00:06]} 17. Ba2 {[%emt 0:01:54]} g6 {[%emt 0:00:49]} 18. Rd2 {[%emt 0:01:16]} Bb7 {[%emt 0:00:43]} 19. Rfd1 {[%emt 0:00:31]} Bc6 {[%emt 0:00:04]} 20. Bb6 {[%emt 0:01:04]} Qb7 {[%emt 0:01:29]} 21. Bc5 {[%emt 0:02:16]} a5 {[%emt 0:03:26]} 22. b4 {[%emt 0:02:23]} h5 {[%emt 0:00:12]} 23. Bb1 {[%emt 0:01:14]} axb4 {[%emt 0:01:54]} 24. Bxb4 {[%emt 0:01:52]} Qa7+ {[%emt 0:02:24]} 25. Kh1 {[%emt 0:00:57]} Qe3 {[%emt 0:00:43]} 26. Rd4 {[%emt 0:02:29]} f5 {[%emt 0:07:22]} 27. exf6 {[%emt 0:08:35]} Nxf6 {[%emt 0:00:05]} 28. Ba2 {[%emt 0:00:05]} Ng4 {[%emt 0:00:44]} 29. Rd8+ {[%emt 0:02:53]} Rxd8 {[%emt 0:00:41]} 30. Rxd8+ {[%emt 0:00:07]} Kh7 {[%emt 0:00:02]} 31. Nd1 {[%emt 0:01:06]} Qxf4 {[%emt 0:00:39]} 32. Nf2 {[%emt 0:48:51]} 0-1

[Event "Irish International Open 2019"]
[Site "Dublin"]
[Date "2019.04.20"]
[Round "5.17"]
[White "Doyle, Hugh"]
[Black "Jocius, Donatas"]
[Result "1-0"]
[ECO "A10"]
[WhiteElo "2042"]
[BlackElo "1773"]
[Annotator "NA"]
[PlyCount "94"]
[EventDate "2019.02.28"]
[EventType "swiss"]
[EventCountry "IRL"]
[SourceTitle "playchess.com"]
[Source "ChessBase"]
[SourceQuality "1"]
[TimeControl "5400+30"]

1. Nf3 {[%emt 0:00:00]} d5 {[%emt 0:02:37]} 2. c4 {[%emt 0:00:00]} e6 {[%emt 0:00:06]} 3. g3 {[%emt 0:00:00]} c6 {[%emt 0:00:32]} 4. Bg2 {[%emt 0:00:00]} f5 {[%emt 0:01:10]} 5. O-O {[%emt 0:00:08]} Nf6 {[%emt 0:00:07]} 6. d3 {[%emt 0:00:14]} Bd6 {[%emt 0:00:27]} 7. Nc3 {[%emt 0:00:06]} O-O {[%emt 0:00:22]} 8. e4 {[%emt 0:00:14]} fxe4 {[%emt 0:01:50]} 9. dxe4 {[%emt 0:00:53]} dxe4 {[%emt 0:03:10]} 10. Ng5 {[%emt 0:00:45]} e5 {[%emt 0:01:31]} 11. Ncxe4 {[%emt 0:17:34]} Be7 {[%emt 0:03:38]} 12. Qc2 {[%emt 0:04:09]} Bf5 {[%emt 0:01:11]} 13. Rd1 {[%emt 0:00:09]} Nfd7 {[%emt 0:02:29]} 14. Bh3 {[%emt 0:08:24]} Bxg5 {[%emt 0:03:47]} 15. Bxf5 {[%emt 0:10:52]} Bxc1 {[%emt 0:00:57]} 16. Bxh7+ {[%emt 0:06:22]} Kh8 {[%emt 0:00:58]} 17. Raxc1 {[%emt 0:00:27]} Qe7 {[%emt 0:02:07]} 18. Rd2 {[%emt 0:10:26]} Na6 {[%emt 0:04:19]} 19. h4 {[%emt 0:06:05]} Nf6 {[%emt 0:01:12]} 20. Nxf6 {[%emt 0:02:38]} Rxf6 {[%emt 0:00:30]} 21. Be4 {[%emt 0:00:50]} Raf8 {[%emt 0:01:09]} 22. Re1 {[%emt 0:01:01]} Nc5 {[%emt 0:04:50]} 23. Bg2 {[%emt 0:00:24]} Nd7 {[%emt 0:02:13]} 24. Qd1 {[%emt 0:05:11]} R8f7 {[%emt 0:02:13]} 25. Bh3 {[%emt 0:03:43]} Nf8 {[%emt 0:00:52]} 26. Qh5+ {[%emt 0:01:34]} Kg8 {[%emt 0:01:09]} 27. Qxe5 {[%emt 0:00:35]} Qb4 {[%emt 0:00:53]} 28. Qc3 {[%emt 0:01:36]} Qc5 {[%emt 0:01:44]} 29. Ree2 {[%emt 0:03:23]} Rf3 {[%emt 0:04:37]} 30. Qd4 {[%emt 0:00:17]} Qa5 {[%emt 0:01:54]} 31. b3 {[%emt 0:01:45]} Qc7 {[%emt 0:01:42]} 32. Kg2 {[%emt 0:05:07]} c5 {[%emt 0:01:39]} 33. Qd8 {[%emt 0:03:39]} Qc6 {[%emt 0:01:52]} 34. Kh2 {[%emt 0:01:58]} b6 {[%emt 0:01:02]} 35. Bg2 {[%emt 0:00:14]} g6 {[%emt 0:04:39]} 36. Bxf3 {[%emt 0:00:42]} Qxf3 {[%emt 0:00:17]} 37. Qd5 {[%emt 0:00:19]} Qf6 {[%emt 0:00:53]} 38. Re8 {[%emt 0:02:38]} Kh7 {[%emt 0:00:26]} 39. Qe5 {[%emt 0:00:42]} Qf3 {[%emt 0:01:49]} 40. Re7 {[%emt 0:00:23]} Kg8 {[%emt 0:01:52]} 41. Rxf7 {[%emt 0:00:24]} Qxf7 {[%emt 0:00:10]} 42. Qd5 {[%emt 0:00:35]} Ne6 {[%emt 0:00:13]} 43. Re2 {[%emt 0:00:07]} Nd4 {[%emt 0:00:27]} 44. Re8+ {[%emt 0:00:15]} Kg7 {[%emt 0:01:12]} 45. Qxf7+ {[%emt 0:00:50]} Kxf7 {[%emt 0:00:13]} 46. Ra8 {[%emt 0:00:08]} Nc6 {[%emt 0:01:48]} 47. Rc8 {[%emt 0:00:09]} Nb4 {[%emt 0:00:52]} 1-0

[Event "Irish International Open 2019"]
[Site "Dublin"]
[Date "2019.04.20"]
[Round "5.20"]
[White "Hafstad, Leif"]
[Black "Daly, Colm"]
[Result "1-0"]
[ECO "B52"]
[WhiteElo "1857"]
[BlackElo "2278"]
[Annotator "NA"]
[PlyCount "73"]
[EventDate "2019.02.28"]
[EventType "swiss"]
[EventCountry "IRL"]
[SourceTitle "playchess.com"]
[Source "ChessBase"]
[SourceQuality "1"]
[TimeControl "5400+30"]

1. e4 {[%emt 0:00:00]} c5 {[%emt 0:00:00]} 2. Nf3 {[%emt 0:00:00]} d6 {[%emt 0:02:06]} 3. Bb5+ {[%emt 0:00:32]} Bd7 {[%emt 0:00:09]} 4. Bxd7+ {[%emt 0:00:11]} Nxd7 {[%emt 0:00:13]} 5. O-O {[%emt 0:00:25]} Ngf6 {[%emt 0:00:06]} 6. Qe2 {[%emt 0:00:29]} g6 {[%emt 0:02:44]} 7. c3 {[%emt 0:00:47]} Bg7 {[%emt 0:00:24]} 8. d4 {[%emt 0:01:15]} O-O {[%emt 0:00:10]} 9. e5 {[%emt 0:05:12]} Ne8 {[%emt 0:00:12]} 10. e6 {[%emt 0:01:45]} fxe6 {[%emt 0:00:25]} 11. Qxe6+ {[%emt 0:02:09]} Kh8 {[%emt 0:00:05]} 12. Ng5 {[%emt 0:02:09]} Nc7 {[%emt 0:00:06]} 13. Nf7+ {[%emt 0:01:23]} Rxf7 {[%emt 0:00:10]} 14. Qxf7 {[%emt 0:00:50]} cxd4 {[%emt 0:00:10]} 15. Bg5 {[%emt 0:04:25]} dxc3 {[%emt 0:03:37]} 16. Nxc3 {[%emt 0:02:18]} Ne5 {[%emt 0:04:58]} 17. Qxe7 {[%emt 0:07:04]} Qxe7 {[%emt 0:00:07]} 18. Bxe7 {[%emt 0:00:11]} Nc4 {[%emt 0:00:06]} 19. Rac1 {[%emt 0:04:19]} Re8 {[%emt 0:02:10]} 20. b3 {[%emt 0:07:22]} Nd2 {[%emt 0:11:47]} 21. Rfe1 {[%emt 0:02:06]} d5 {[%emt 0:07:46]} 22. f3 {[%emt 0:04:57]} Kg8 {[%emt 0:06:33]} 23. Bb4 {[%emt 0:07:06]} Bd4+ {[%emt 0:13:28]} 24. Kh1 {[%emt 0:00:28]} Be3 {[%emt 0:00:26]} 25. Nxd5 {[%emt 0:04:19]} Nxd5 {[%emt 0:03:12]} 26. Bxd2 {[%emt 0:00:36]} Bxd2 {[%emt 0:02:22]} 27. Rxe8+ {[%emt 0:00:30]} Kf7 {[%emt 0:00:05]} 28. Rcc8 {[%emt 0:01:03]} Bb4 {[%emt 0:01:16]} 29. Red8 {[%emt 0:02:08]} Ne7 {[%emt 0:00:38]} 30. Rd7 {[%emt 0:01:45]} Ke6 {[%emt 0:00:53]} 31. Rcc7 {[%emt 0:00:55]} a5 {[%emt 0:00:16]} 32. Rxb7 {[%emt 0:01:08]} h5 {[%emt 0:00:07]} 33. Rd4 {[%emt 0:06:39]} Nd5 {[%emt 0:05:48]} 34. Rb5 {[%emt 0:01:32]} Nc3 {[%emt 0:00:15]} 35. Rbxb4 {[%emt 0:00:42]} axb4 {[%emt 0:00:06]} 36. Rxb4 {[%emt 0:00:22]} Nxa2 {[%emt 0:00:07]} 37. Rc4 {[%emt 0:00:18]} 1-0

[Event "Irish International Open 2019"]
[Site "Dublin"]
[Date "2019.04.20"]
[Round "5.23"]
[White "Buonanno, Raffaele"]
[Black "O`Connell, Kevin J."]
[Result "1-0"]
[ECO "B20"]
[WhiteElo "2091"]
[BlackElo "2328"]
[Annotator "NA"]
[PlyCount "73"]
[EventDate "2019.02.28"]
[EventType "swiss"]
[EventCountry "IRL"]
[SourceTitle "playchess.com"]
[Source "ChessBase"]
[SourceQuality "1"]
[TimeControl "5400+30"]

1. e4 {[%emt 0:00:00]} e5 {[%emt 0:00:00]} 2. c4 {[%emt 0:00:00]} c5 {[%emt 0:02:37]} 3. Nc3 {[%emt 0:00:06]} Nc6 {[%emt 0:00:50]} 4. g3 {[%emt 0:00:11]} g6 {[%emt 0:00:31]} 5. Bg2 {[%emt 0:00:06]} d6 {[%emt 0:01:47]} 6. Nge2 {[%emt 0:00:11]} Be6 {[%emt 0:01:56]} 7. d3 {[%emt 0:00:05]} Qd7 {[%emt 0:02:35]} 8. Nd5 {[%emt 0:00:41]} Bg7 {[%emt 0:04:36]} 9. a3 {[%emt 0:02:21]} Nd4 {[%emt 0:22:08]} 10. Nxd4 {[%emt 0:02:26]} cxd4 {[%emt 0:02:09]} 11. O-O {[%emt 0:01:03]} Ne7 {[%emt 0:02:29]} 12. f4 {[%emt 0:00:33]} Nxd5 {[%emt 0:10:14]} 13. exd5 {[%emt 0:03:49]} Bg4 {[%emt 0:00:48]} 14. Qc2 {[%emt 0:01:15]} f6 {[%emt 0:01:05]} 15. c5 {[%emt 0:05:36]} dxc5 {[%emt 0:11:34]} 16. fxe5 {[%emt 0:00:06]} fxe5 {[%emt 0:00:20]} 17. Qxc5 {[%emt 0:00:09]} Rc8 {[%emt 0:02:27]} 18. Qb4 {[%emt 0:00:16]} Bf8 {[%emt 0:01:26]} 19. Qb3 {[%emt 0:00:05]} h5 {[%emt 0:05:06]} 20. Bg5 {[%emt 0:01:12]} Bh6 {[%emt 0:03:49]} 21. Bf6 {[%emt 0:02:54]} Be3+ {[%emt 0:04:52]} 22. Kh1 {[%emt 0:00:06]} O-O {[%emt 0:04:56]} 23. d6+ {[%emt 0:03:45]} Kh7 {[%emt 0:00:24]} 24. Be7 {[%emt 0:00:43]} Rf5 {[%emt 0:06:17]} 25. Qxb7 {[%emt 0:09:11]} Qxb7 {[%emt 0:04:19]} 26. Bxb7 {[%emt 0:00:08]} Rxf1+ {[%emt 0:00:03]} 27. Rxf1 {[%emt 0:00:07]} Rb8 {[%emt 0:00:07]} 28. Bc6 {[%emt 0:00:19]} Bh3 {[%emt 0:02:06]} 29. Rf7+ {[%emt 0:01:02]} Kh6 {[%emt 0:00:07]} 30. b4 {[%emt 0:00:13]} Rc8 {[%emt 0:01:30]} 31. b5 {[%emt 0:00:06]} Be6 {[%emt 0:00:11]} 32. d7 {[%emt 0:01:43]} Bxd7 {[%emt 0:01:04]} 33. Bxd7 {[%emt 0:00:07]} Rc1+ {[%emt 0:00:14]} 34. Kg2 {[%emt 0:00:05]} Rc2+ {[%emt 0:00:07]} 35. Kh3 {[%emt 0:01:51]} g5 {[%emt 0:01:33]} 36. g4 {[%emt 0:01:10]} h4 {[%emt 0:00:26]} 37. Bf5 {[%emt 0:00:12]} 1-0

[Event "Irish International Open 2019"]
[Site "Dublin"]
[Date "2019.04.20"]
[Round "5.24"]
[White "Murphy, Sean"]
[Black "Kersten, Julian"]
[Result "1-0"]
[ECO "B43"]
[WhiteElo "1976"]
[BlackElo "1996"]
[Annotator "NA"]
[PlyCount "115"]
[EventDate "2019.02.28"]
[EventType "swiss"]
[EventCountry "IRL"]
[SourceTitle "playchess.com"]
[Source "ChessBase"]
[SourceQuality "1"]
[TimeControl "5400+30"]

1. e4 {[%emt 0:00:00]} c5 {[%emt 0:02:01]} 2. Nf3 {[%emt 0:00:00]} e6 {[%emt 0:00:27]} 3. d4 {[%emt 0:01:38]} cxd4 {[%emt 0:00:16]} 4. Nxd4 {[%emt 0:00:06]} a6 {[%emt 0:00:24]} 5. Bd3 {[%emt 0:01:07]} Nf6 {[%emt 0:00:34]} 6. O-O {[%emt 0:00:40]} Qc7 {[%emt 0:00:23]} 7. Be3 {[%emt 0:02:08]} d6 {[%emt 0:00:42]} 8. Nc3 {[%emt 0:02:57]} Nbd7 {[%emt 0:01:40]} 9. Qe2 {[%emt 0:06:47]} b5 {[%emt 0:02:20]} 10. a3 {[%emt 0:04:42]} Bb7 {[%emt 0:02:32]} 11. f3 {[%emt 0:02:47]} Be7 {[%emt 0:01:27]} 12. Qf2 {[%emt 0:00:59]} d5 {[%emt 0:09:33]} 13. exd5 {[%emt 0:03:01]} Nxd5 {[%emt 0:02:26]} 14. Nxd5 {[%emt 0:01:13]} Bxd5 {[%emt 0:00:11]} 15. Nb3 {[%emt 0:05:56]} O-O {[%emt 0:03:11]} 16. Rac1 {[%emt 0:06:11]} Rfc8 {[%emt 0:04:19]} 17. Nd2 {[%emt 0:09:32]} Ne5 {[%emt 0:13:17]} 18. Be2 {[%emt 0:03:05]} Nc4 {[%emt 0:01:56]} 19. Nxc4 {[%emt 0:03:18]} Bxc4 {[%emt 0:00:13]} 20. Rfd1 {[%emt 0:07:50]} Bd6 {[%emt 0:06:01]} 21. g3 {[%emt 0:08:08]} Bd5 {[%emt 0:01:36]} 22. c3 {[%emt 0:06:28]} Bc5 {[%emt 0:08:37]} 23. f4 {[%emt 0:03:48]} Bxe3 {[%emt 0:03:51]} 24. Qxe3 {[%emt 0:00:03]} Rd8 {[%emt 0:01:18]} 25. Rf1 {[%emt 0:06:54]} Rd6 {[%emt 0:05:32]} 26. a4 {[%emt 0:03:34]} Bc4 {[%emt 0:02:59]} 27. axb5 {[%emt 0:00:19]} axb5 {[%emt 0:00:29]} 28. Ra1 {[%emt 0:00:48]} Rad8 {[%emt 0:09:12]} 29. Bxc4 {[%emt 0:03:30]} Qxc4 {[%emt 0:01:24]} 30. Qf3 {[%emt 0:01:39]} Qb3 {[%emt 0:04:07]} 31. Rf2 {[%emt 0:00:53]} g6 {[%emt 0:02:40]} 32. Ra8 {[%emt 0:01:46]} Rd1+ {[%emt 0:00:52]} 33. Kg2 {[%emt 0:00:16]} Rxa8 {[%emt 0:00:35]} 34. Qxa8+ {[%emt 0:00:02]} Kg7 {[%emt 0:00:10]} 35. Qe4 {[%emt 0:00:34]} Rd5 {[%emt 0:03:39]} 36. g4 {[%emt 0:01:31]} Qd1 {[%emt 0:01:13]} 37. Qf3 {[%emt 0:01:08]} Qb3 {[%emt 0:00:45]} 38. h3 {[%emt 0:00:54]} b4 {[%emt 0:01:45]} 39. cxb4 {[%emt 0:00:41]} Qxb4 {[%emt 0:00:12]} 40. f5 {[%emt 0:00:23]} gxf5 {[%emt 0:01:00]} 41. gxf5 {[%emt 0:00:09]} Rxf5 {[%emt 0:01:06]} 42. Qg3+ {[%emt 0:00:28]} Kf8 {[%emt 0:00:30]} 43. Rxf5 {[%emt 0:00:24]} exf5 {[%emt 0:01:07]} 44. Qa3 {[%emt 0:00:07]} Qe7 {[%emt 0:01:13]} 45. Kf3 {[%emt 0:00:14]} Ke8 {[%emt 0:00:16]} 46. Qxe7+ {[%emt 0:00:03]} Kxe7 {[%emt 0:00:05]} 47. Kf4 {[%emt 0:00:13]} Kf6 {[%emt 0:01:10]} 48. h4 {[%emt 0:00:12]} h6 {[%emt 0:00:30]} 49. h5 {[%emt 0:00:19]} Ke6 {[%emt 0:00:14]} 50. b3 {[%emt 0:00:29]} Kf6 {[%emt 0:00:23]} 51. b4 {[%emt 0:00:01]} Ke6 {[%emt 0:00:06]} 52. b5 {[%emt 0:00:10]} Kd5 {[%emt 0:00:17]} 53. Kxf5 {[%emt 0:00:08]} Kc5 {[%emt 0:00:04]} 54. Kf6 {[%emt 0:00:09]} Kxb5 {[%emt 0:00:03]} 55. Kxf7 {[%emt 0:00:14]} Kc6 {[%emt 0:00:12]} 56. Kg6 {[%emt 0:00:05]} Kd7 {[%emt 0:00:04]} 57. Kxh6 {[%emt 0:00:04]} Ke8 {[%emt 0:00:05]} 58. Kg7 {[%emt 0:00:08]} 1-0